Cogmind - Beta 13 @@@ ROGUE MODE // 2024.04.02 @ 10:18:35 Player: orbstealer Result: Destroyed by G-34 Mercenary with Small Laser Performance ------------- Evolutions (0) 0 Regions Visited (1) 200 Robots Destroyed (8) 40 Value Destroyed (220) 220 Prototype IDs (2) 40 Alien Tech Used (0) 0 Bonus (0) 0 TOTAL SCORE: 500 Bonus ------- None Cogmind --------- Core Integrity 0/250 Matter 182/300 Energy 300/300 System Corruption 0% Temperature Cool (6) Movement Core (750) Ox14 Location -10/Materials Parts ------- > --- POWER (1) -------- (None) > --- PROPULSION (2) --- (None) > --- UTILITY (2) ------ High-capacity Storage Unit Large Battery > --- WEAPON (2) ------- Light Assault Rifle > --- INVENTORY (20) --- Wheel Improved Heat Sink Small Matter Pod (50) Sensor Array Weapon Shielding Peak State ------------ > --- POWER ------------ Light Ion Engine > --- PROPULSION ------- Aluminum Leg Aluminum Leg > --- UTILITY ---------- Heat Sink Seismic Detector > --- WEAPON ----------- Small Laser Light Assault Rifle > --- INVENTORY -------- Light Ion Engine Wheel Wheel Small Matter Pod Assault Rifle [Rating: 7] Favorites ----------- Power Light Ion Engine Engine Light Ion Engine Propulsion Aluminum Leg Leg Aluminum Leg Wheel Wheel Utility Large Battery Device Heat Sink Storage Large Battery Protection Weapon Shielding Weapon Assault Rifle Energy Gun Small Laser Ballistic Gun Assault Rifle Build | -11 -10 ------- Run | Yrd Mat Slots Evolved . | . . Power . | . . Propulsion . | . . Utility . | . . Weapon . | . . Parts Attached 17 | 10 7 Power 2 | 1 1 Engine 2 | 1 1 Core . | . . Reactor . | . . Propulsion 4 | 4 . Treads . | . . Leg 2 | 2 . Wheel 2 | 2 . Hover . | . . Flight . | . . Utility 5 | 2 3 Device 2 | 2 . Storage 2 | . 2 Processor . | . . Hackware . | . . Protection 1 | . 1 Artifact . | . . Weapon 6 | 3 3 Energy Gun 1 | 1 . Energy Cannon . | . . Ballistic Gun 5 | 2 3 Ballistic Cannon . | . . Launcher . | . . Special Weapon . | . . Impact Weapon . | . . Slashing Weapon . | . . Piercing Weapon . | . . Special Melee Weapon . | . . Unidentified Prototypes . | . . Parts Lost 6 | . 6 Power 2 | . 2 Propulsion 2 | . 2 Utility . | . . Weapon 2 | . 2 Highest Loss Streak 4 | . 4 To Critical Strikes . | . . Average Slot Usage (%) 83 | . 83 Engine 8 | . 8 Leg 23 | . 23 Device 2 | . 2 Storage 21 | . 21 Protection 3 | . 3 Ballistic Gun 20 | . 20 Naked Turns . | . . Heaviest Build 50 | 7 50 Greatest Support 20 | 20 20 Greatest Overweight (x) 15 | . 15 Average Overweight (x) . | . 1 Largest Inventory Capacity 20 | 5 20 Average Capacity 10 | 5 14 Most Carried 7 | 5 7 Average Carried 4 | 3 5 Final Capacity 20 | 5 20 Final Carried 5 | 5 5 Class Distribution -------------------- 100% | Mutant Dominant Class ---------------- Mutant | -10/Materials Resources | -11 -10 ----------- Run | Yrd Mat Matter Collected 481 | 364 117 Remotely . | . . Salvage Created 262 | 93 169 Parts 16 | 9 7 Haulers Intercepted . | . . Recyclers Shooed . | . . Parts Field Recycled . | . . Retrieved Matter . | . . Parts Self-Destructed . | . . Prevented . | . . Kills | -11 -10 ------- Run | Yrd Mat Combat Hostiles Destroyed 5 | 1 4 Guns 5 | 1 4 Classes Destroyed 4 | 3 1 Worker 1 | 1 . Tunneler 1 | 1 . Watcher 1 | . 1 Grunt 5 | 1 4 Best Kill Streak 2 | 1 2 Combat Bots Only 2 | 1 2 Max Kills in Single Turn 1 | 1 1 Gunslinging . | . . Exploded . | . . Melee . | . . Uniques/NPCs Destroyed . | . . Combat | -11 -10 -------- Run | Yrd Mat Hostile Shots Fired 88 | 4 84 Missed 22 | 1 21 Damage Taken 848 | 35 813 Core 251 | 11 240 Absorbed by Shields . | . . Redirected to Shielding 6 | . 6 Core Remaining (%) 95 | 95 . Volleys Fired 60 | 6 54 Largest 2 | 2 2 Hottest 60 | 60 40 Shots Fired 91 | 12 79 Gun 91 | 12 79 Cannon . | . . Launcher . | . . Special . | . . Kinetic 85 | 6 79 Thermal 6 | 6 . Explosive . | . . Electromagnetic . | . . Robot Hit Streak 14 | 6 14 Robot Miss Streak 3 | 1 3 Penetration Max . | . . Secondary Targets 1 | . 1 Max Gunslinging Chain 1 | . 1 Shots Hit Robots 63 | 8 55 Core Hits 21 | 4 17 Critical Kills . | . . Critical Parts Destroyed . | . . Critical Strikes . | . . Melee Attacks . | . . Impact . | . . Slashing . | . . Piercing . | . . Sneak Attacks . | . . Combat Hostiles . | . . Follow-up Attacks . | . . Damage Inflicted 715 | 91 624 Guns 715 | 91 624 Cannons . | . . Explosions . | . . Melee . | . . Ramming . | . . Kinetic 660 | 36 624 Thermal 55 | 55 . Explosive . | . . Electromagnetic . | . . Impact . | . . Slashing . | . . Piercing . | . . Highest Corruption . | . . Average Corruption . | . . Corruption Purged . | . . Corruption Blocked . | . . Overload Shots . | . . Overflow Damage . | . . Projectiles . | . . Explosions . | . . Melee . | . . Knockbacks . | . . Impact . | . . Kinetic . | . . Secondary . | . . Self-Inflicted Damage . | . . Shots . | . . Rammed . | . . Targets Rammed . | . . Kicked . | . . Crushed . | . . Highest Temperature 18 | 18 9 Average Temperature 6 | 13 3 Received Heat Transfer 462 | 18 444 Siege Activations . | . . Robots Corrupted . | . . Combat Hostiles . | . . Parts Fried . | . . Impact Corruptions . | . . Robots Melted . | . . Combat Hostiles . | . . Parts Melted . | . . Heat Transferred 125 | 125 . Parts Sabotaged . | . . Parts Stolen . | . . Parts Stripped . | . . Power Chain Reactions . | . . Alert | -11 -10 ------- Run | Yrd Mat Peak Influence 121 | 30 121 Initial 19 | . 19 Average 51 | 17 73 Maximum Alert Level . | . . Low Security (%) 100 | 100 100 Level 1 . | . . Level 2 . | . . Level 3 . | . . Level 4 . | . . Level 5 . | . . High Security . | . . Max Security . | . . Squads Dispatched 1 | . 1 Investigation 1 | . 1 Extermination . | . . Reinforcement . | . . Assault . | . . Garrison . | . . Intercept . | . . Searches Triggered . | . . Construction Impeded . | . . Haulers Reinforced . | . . Active Scanning Responses . | . . Cargo Convoy Interrupts . | . . Stealth | -11 -10 --------- Run | Yrd Mat Distress Signals 2 | . 2 Communications Jammed . | . . Distress Signals . | . . Times Spotted 12 | 1 11 Peak Tracking Total 4 | 1 4 Tactical Retreats 1 | . 1 Traps | -11 -10 ------- Run | Yrd Mat Traps Triggered 2 | . 2 Indirectly . | . . Trap Hack Attempts . | . . Triggered . | . . Disarmed . | . . Reprogrammed . | . . Reused . | . . Traps Extracted . | . . Installed . | . . Triggered . | . . Machines | -11 -10 ---------- Run | Yrd Mat Machines Disabled . | . . Max in Single Turn . | . . Machines Repaired . | . . Machines Dismantled . | . . Machines Sabotaged . | . . Overloaded Fab Kills . | . . Hacking | -11 -10 --------- Run | Yrd Mat Machines Accessed 1 | . 1 Terminals 1 | . 1 Fabricators . | . . Repair Stations . | . . Recycling Units . | . . Scanalyzers . | . . Garrison Access . | . . Total Hacks 2 | . 2 Successful 2 | . 2 Failed . | . . Catastrophic . | . . Database Lockouts . | . . Manual . | . . Terminals 2 | . 2 Fabricators . | . . Repair Stations . | . . Recycling Units . | . . Scanalyzers . | . . Garrison Access . | . . Terminal Hacks 2 | . 2 Record 1 | . 1 Prototype ID Bank 1 | . 1 Fabricator Hacks . | . . Repair Station Hacks . | . . Recycling Unit Hacks . | . . Scanalyzer . | . . Garrison Access Hacks . | . . Unauthorized Hacks . | . . Terminals . | . . Fabricators . | . . Repair Stations . | . . Recycling Units . | . . Scanalyzers . | . . Garrison Access . | . . Data Cores Recovered . | . . Used . | . . Hacking Detections 1 | . 1 Full Trace Events . | . . Feedback Events . | . . Feedback Blocked . | . . Robot Schematics Acquired . | . . Robots Built . | . . Authchips . | . . Time . | . . Total Robot Build Rating . | . . Part Schematics Acquired . | . . Parts Built . | . . Authchips . | . . Time . | . . Total Part Build Rating . | . . Parts Repaired . | . . Time . | . . Parts Recycled . | . . Recycled Matter . | . . Retrieved Matter . | . . Retrieved Components . | . . Parts Scanalyzed . | . . Part Schematics Acquired . | . . Parts Damaged . | . . Bothacking | -11 -10 ------------ Run | Yrd Mat Used RIF Installer . | . . Robots Hacked . | . . Non-combat . | . . Combat . | . . Robot Hacks Applied . | . . Relay Couplers Released . | . . Fabnet Peak Effective % . | . . Robots Rewired . | . . Allies Hacked . | . . Hacks Repelled . | . . Allies | -11 -10 -------- Run | Yrd Mat Total Allies . | . . Largest Group . | . . Highest-Rated Group . | . . Highest-Rated Ally . | . . Total Orders . | . . Ally Attacks . | . . Total Damage . | . . Kills . | . . Allies Corrupted . | . . Allies Melted . | . . Intel | -11 -10 ------- Run | Yrd Mat Robot Analysis Total . | . . Derelict Logs Recovered . | . . Drone Launches . | . . Drone Recoveries . | . . Exploration | -11 -10 ------------- Run | Yrd Mat Turns Passed 579 | 223 356 Spaces Moved 289 | 179 110 Core 20 | 18 2 Treads . | . . Legs 210 | 102 108 Wheels 59 | 59 . Hover . | . . Flight . | . . Fastest Speed 50 | 50 120 Average Speed 134 | 99 190 Slowest Speed 800 | 120 800 Overloaded Moves . | . . Propulsion Burnouts . | . . Robots Hopped . | . . Cave-ins Triggered . | . . Exploration Rate (%) 13 | 8 18 Regions Visited 1 Branch Regions . Pre-discovered Areas . | . . Known Exits Taken . | . . Unknown Exits Taken 1 | 1 . Scrap Searched . | . . Spaces Dug . | . . Terrain Destroyed . | . . Melee . | . . Projectile . | . . AOE . | . . Terrain Rammed . | . . Walls Destroyed . | . . Machines Disabled . | . . Actions | -11 -10 --------- Run | Yrd Mat Total 393 | 209 184 Wait 5 | 5 . Move 288 | 178 110 Hop . | . . Pick Up 17 | 10 7 Fast Attach 2 | 2 . Attach 9 | 5 4 Detach 1 | . 1 Swap 6 | 3 3 Drop 5 | . 5 Fire 60 | 6 54 Melee . | . . Ram . | . . Kick . | . . Crush . | . . Escape Stasis . | . . Rewire . | . . Trap . | . . Miscellaneous . | . . Route ------- -11/Scrapyard -10/Materials History --------- Turn | Location | Event 2 | -11/Scrapyard | Met Revision 17 58 | -11/Scrapyard | Discovered new exit (range 8) 224 | -11/Scrapyard | Entered Materials 303 | -10/Materials | Build established: Mutant 530 | -10/Materials | Core integrity fell below 50% 558 | -10/Materials | Core integrity fell below 20% 580 | -10/Materials | Destroyed by G-34 Mercenary with Small Laser Last Messages --------------- the area. 00488_ Triggered Alarm Trap. 00488_ An alarm sounds. 00488_ ALERT: Alarm triggered, dispatching investigation squad. 00496_ Acquired Lgt. Assault Rifle. 00499_ U-05 Engineer lays Concrete. 00506_ W-16 Scout sends out distress signal. 00506_ U-05 Engineer lays Concrete. 00509_ W-16 Scout destroyed. 00512_ Aluminum Leg destroyed. 00512_ Assault Rifle destroyed. 00518_ K-01 Serf collects debris. 00531_ Aluminum Leg destroyed. 00537_ G-34 Mercenary destroyed. 00538_ R-06 Scavenger collects Signal Interpreter. 00545_ R-06 Scavenger collects Aluminum Leg. 00555_ Lgt. Ion Engine destroyed. 00561_ G-34 Mercenary destroyed. Map ----- +----------------------------------------------------+ | ???????????????# [+ #?? | | ???????????????# """" ######?? | | ???????????????# """" #??????? | | ???????????????# """" #??????? | | ???????????????# #??????? | | ???????????????####/#####??????? | | ?????????????###### #??????????? | | ?????????????# # #??????????? | | ?????????????# # #??????????? | | ?????????????# # #??????????? | | ??????# ???# # #??????????? | | ??????# ???# # #??????????? | | ??????# ???# # #??????????? | | ?????## ##?# # #??????????? | | ??##?# #?# # #??????????? | | ??# # #?# # #????? ##### | | ??# #####+## ## | | ?????# | | ?????# ##### | | ?????### T #????? ##### | | ######## #??????+##????? | | # # #?????????????? | | # # """ #?????????????? | | # """ # """ #?????????????? | | # """ !# """ #?????????????? | | # """ [@g #?????????????? | | # #! #?????????????? | | ######## %####?????????????? | | ??????# !#????????????????? | | ??????+ ^ ^ #????????????????? | | ??????# #????????????????? | | ??????## ### #????????????????? | | ???????# #?# #????????????????? | | ???????# #?# #????????????????? | | ???????# #?# #????????????????? | | ???????# #?# #????????????????? | | ???????# #?? #????????????????? | | ???????# #?? #????????????????? | | ???????# ??? #????????????????? | | ???????# ??? ?????????????????? | | ???????+ ?????????????????????? | | ???????# ?????????????????????? | | ???????# ?????????????????????? | | ???????????????????????????????? | | ???????????????????????????????? | | ???????????????????????????????? | | ???????????????????????????????? | | ???????????????????????????????? | | ???????????????????????????????? | | ???????????????????????????????? | +----------------------------------------------------+ Best States ------------- Heat Dissipation 35 Energy Generation 10 Energy Capacity 325 Matter Stores 300 Matter Capacity 300 Sight Range 16 Terrain Scan Density 10 Weapon Shielding 33 Evasion (%) 55 Item Schematics ----------------- None Robot Schematics ------------------ None Fabricated ------------ Nothing Alien Tech Used ----------------- None Achievements -------------- None Challenges ------------ None Game ------ Seed RegenerativeLinkedStick Manual? 0 Play Time 00:13:53 Cumulative 1.0 hours Start 2024.04.02 @ 09:57:45 End 2024.04.02 @ 10:18:35 Sessions 1 Manual Loads 0 Difficulty Rogue Special Mode None Game No. 2 Rogue 2 Adventurer 0 Explorer 0 Win Type - Total 0 Types 0/0/0/0/0/0/0/0/0 Lore% 1 Gallery% 3 Achievement% 3 Wizard Run 0 Options --------- Layout 1 ASCII 0 Keyboard 0 Movement Mouse Keybinds 0 Fullscreen 1 Font 24/Smallcaps Map View 50x35 Zoom Use 0% Tactical HUD 1 Map Filters NONE Filters NONE Steam 1 RUN: ae15b739-70f6-43cc-9a94-f97e60750d8e